bitfinex/quotes_ETHUSD_20260314
["timestamp","ask_amount","ask_price","bid_price","bid_amount"]
[1773455882465,0.49523869,2090.6,2090.3,0.46436243]
[1773455882666,0.49523869,2090.6,2090.3,1.6603488]
[1773455884470,0.49523869,2090.5,2090.3,0.0011]
[1773455884655,0.001,2090.4,2090.3,0.0011]
[1773455887587,0.49623869,2090.4,2090.3,0.0011]
[1773455887874,0.49623869,2090.4,2090.1,0.0011]
[1773455888068,0.49623869,2090.4,2090.1,1.19721037]
[1773455888673,0.49623869,2090.4,2090.1,0.46546243]
[1773455888973,0.001,2090.4,2090.1,0.46546243]
[1773455891159,0.001,2090.4,2090.3,0.46436243]
[1773455893348,2.85726549,2090.6,2090.3,1.660363]
[1773455893543,0.55502727,2090.7,2090.3,1.660363]
[1773455893776,2.85726747,2090.6,2090.3,1.660363]
[1773455893975,0.55502727,2090.7,2090.3,1.660363]
[1773455894280,2.85726545,2090.6,2090.3,1.660363]
[1773455894481,0.55502727,2090.7,2090.4,0.46436243]
[1773455896448,0.55502727,2090.7,2090.5,0.0011]
[1773455899077,1.750844,2090.7,2090.5,0.0011]
[1773455899974,1.25560531,2090.7,2090.5,0.0011]
[1773455900182,0.49523869,2090.6,2090.5,0.0011]
[1773455905683,1.69106763,2090.6,2090.5,0.0011]
[1773455907477,0.46258922,2090.5,2090.3,0.0011]
[1773455907806,0.46258922,2090.5,2090.0,0.0011]
[1773455907807,0.46258922,2090.3,2090.0,0.0011]
[1773455908295,0.46258922,2090.1,2090.0,0.0011]
[1773455908500,0.46258922,2090.1,2089.8,0.0011]
[1773455909761,0.46258922,2090.1,2090.0,0.0011]
[1773455909987,0.46258922,2090.1,2089.8,0.0011]
[1773455910899,0.46258922,2089.9,2089.8,0.0011]
[1773455913477,1.6588187,2089.9,2089.8,0.0011]
[1773455913666,0.46258922,2089.8,2089.5,0.0011]
[1773455913866,0.46258922,2089.8,2089.5,1.1975548]
[1773455914569,0.46258922,2089.8,2089.5,1.19755665]
[1773455914761,0.46258922,2089.8,2089.5,1.66301908]
[1773455915366,1.19621783,2090.0,2089.5,1.66301908]
[1773455915692,0.46258922,2089.9,2089.5,1.66301908]
[1773455916396,0.46258922,2089.9,2089.6,0.46546243]
[1773455917396,1.65882638,2089.9,2089.5,0.46656243]
[1773455917899,0.46258922,2089.9,2089.5,0.46656243]
[1773455918787,1.65882435,2089.9,2089.5,0.46656243]
[1773455918970,1.19623513,2089.9,2089.5,0.46656243]
[1773455919176,0.46258922,2089.8,2089.5,0.46656243]
[1773455919376,0.5223921,2089.8,2089.5,0.46656243]
[1773455919805,0.5223921,2089.8,2089.5,1.66300213]
[1773455920800,0.5223921,2089.8,2089.5,0.46656243]
[1773455920980,0.46258922,2089.8,2089.5,0.46656243]
[1773455921407,0.46258922,2089.8,2089.5,1.66299442]
[1773455921604,0.05980288,2089.7,2089.5,1.66299442]
[1773455923104,0.46258922,2089.9,2089.6,0.46546243]
[1773455923402,0.001,2089.7,2089.5,1.66299331]
[1773455927328,0.001,2089.7,2089.6,0.46199765]
[1773455929791,0.001,2089.7,2089.6,1.65839887]
[1773455935013,0.49447294,2090.3,2089.7,0.46185876]
[1773455935183,1.19600235,2090.3,2089.8,1.65814548]
[1773455935384,0.55413094,2090.2,2089.8,1.65814548]
[1773455935884,0.55413094,2090.2,2089.8,1.65924548]
[1773455936585,0.55413094,2090.2,2089.8,0.0011]
[1773455938516,0.49447294,2090.1,2089.8,0.0011]
[1773455938687,0.55413094,2090.0,2089.8,0.0011]
[1773455939714,0.49447294,2090.3,2089.9,0.46185876]
[1773455940221,0.059658,2090.2,2089.9,0.46185876]
[1773455940524,0.059658,2090.2,2089.8,0.0011]
[1773455940525,0.49447294,2090.1,2089.8,0.0011]
[1773455940690,0.49447294,2090.1,2089.8,0.46295876]
[1773455940891,0.001,2090.5,2089.8,0.46295876]
[1773455940892,0.49447294,2090.4,2089.8,0.46295876]
[1773455941606,0.001,2090.5,2089.8,0.46295876]
[1773455941989,0.060658,2090.5,2089.8,0.46295876]
[1773455942193,0.001,2090.5,2089.8,0.46295876]
[1773455942603,0.001,2090.5,2090.0,0.46185876]
[1773455943220,0.001,2090.5,2090.1,0.46185876]
[1773455943722,0.001,2090.5,2090.2,0.46185876]
[1773455944591,0.001,2090.5,2090.3,1.65785933]
[1773455946728,0.001,2090.5,2090.4,0.46185876]
[1773455948928,0.001,2090.5,2090.4,1.65780212]
[1773455950639,0.001,2090.5,2090.3,1.19595597]
[1773455953645,0.001,2090.5,2090.3,1.65781473]
[1773455953843,0.001,2090.5,2090.3,1.24379599]
[1773455954010,0.001,2090.5,2090.3,1.70565475]
[1773455965437,0.4050777,2090.6,2090.3,1.70565475]
[1773455965640,0.001,2090.8,2090.4,0.45082563]
[1773455965865,0.001,2090.8,2090.6,0.45082563]
[1773455967055,0.001,2090.8,2090.6,1.64660016]
[1773455972572,0.47731438,2091.2,2090.7,0.45082563]
[1773455974748,0.47731438,2091.2,2090.8,1.64654018]
[1773455975767,0.47731438,2091.2,2090.9,0.45082563]
[1773455976769,0.47731438,2091.2,2090.9,1.64643412]
[1773455978574,0.47731438,2091.2,2090.9,1.19560849]
[1773455978949,0.47731438,2091.2,2090.9,1.64643412]
[1773455980755,0.001,2091.2,2091.0,0.45082563]
[1773455983062,0.001,2091.2,2091.1,1.19554301]
[1773455984951,0.001,2091.2,2091.1,1.64636864]
[1773455985356,0.001,2091.2,2091.1,1.19554301]
[1773455988266,0.47841128,2091.2,2091.0,1.19557336]
[1773455993279,1e-08,2091.2,2091.0,1.19557336]
[1773455993486,0.45214038,2091.4,2091.0,1.19557336]
[1773455994476,0.059658,2091.3,2090.9,1.64857087]
[1773455994680,0.45214038,2091.2,2090.8,1.19678208]
[1773455996358,0.45214038,2091.2,2090.8,1.67922357]
[1773455997676,0.45214038,2091.2,2090.8,0.0011]
[1773455997875,0.45214038,2091.1,2090.8,0.0011]
[1773456000671,0.45214038,2091.1,2091.0,0.001]
[1773456003887,0.45214038,2091.1,2090.8,1.19681455]
[1773456004065,0.45134038,2091.1,2090.8,0.0011]
[1773456004268,0.45134038,2091.1,2090.8,0.0003]
[1773456006379,0.45134038,2091.1,2090.8,1.19601455]
[1773456006579,0.45134038,2091.1,2090.8,1.67845604]
[1773456006783,0.002,2091.2,2090.9,0.48244149]
[1773456007910,0.002,2091.2,2091.0,0.53026549]
[1773456008407,0.002,2091.2,2091.0,0.48244149]
[1773456008609,0.002,2091.2,2091.1,1.19554301]
[1773456008976,0.002,2091.2,2091.1,1.6779845]
[1773456017493,0.002,2091.5,2091.2,0.48244149]
[1773456019827,0.002,2091.5,2091.3,1.67787017]
[1773456020921,0.002,2091.5,2091.4,0.48244149]
[1773456022128,0.002,2091.5,2091.4,1.67781301]
[1773456023441,0.4911994,2091.9,2091.5,0.48214257]
[1773456024295,0.4911994,2091.9,2091.5,1.67743404]
[1773456028626,0.002,2091.7,2091.5,1.67743404]
[1773456030941,0.002,2091.7,2091.5,1.72524661]
[1773456031935,0.002,2091.7,2091.6,0.48214257]
[1773456032130,0.002,2091.7,2091.5,1.24310404]
[1773456032330,0.002,2091.7,2091.5,1.72524661]
[1773456033235,0.002,2091.7,2091.6,0.48214257]
[1773456033620,0.002,2091.9,2091.5,1.24310404]
[1773456033809,0.002,2091.9,2091.6,0.48214257]
[1773456034211,0.002,2091.9,2091.6,1.67736542]
[1773456035039,0.4931994,2091.9,2091.6,1.67736542]
[1773456035242,0.4931994,2091.9,2091.4,0.001]
[1773456038921,0.4911994,2091.7,2091.4,0.001]
[1773456039123,0.4931994,2091.9,2091.5,0.48214257]
[1773456040930,0.4931994,2091.9,2091.6,1.19525721]
[1773456041322,0.4931994,2091.9,2091.6,0.48214257]
[1773456043847,0.4931994,2091.9,2091.6,1.67739084]
[1773456044760,0.4931994,2091.9,2091.7,0.001]
[1773456045058,0.002,2091.9,2091.7,0.001]
[1773456046557,0.002,2091.9,2091.7,0.46727536]
[1773456047357,0.002,2091.9,2091.7,1.66244664]
[1773456048635,0.002,2091.9,2091.8,0.46627536]
[1773456050031,0.002,2091.9,2091.7,0.46727536]
[1773456051862,0.49780841,2091.9,2091.7,0.001]
[1773456052031,0.49780841,2091.9,2091.5,0.001]
[1773456053867,0.49580841,2091.8,2091.5,0.001]
[1773456056227,0.49580841,2091.7,2091.5,0.001]
[1773456057734,0.49780841,2091.9,2091.5,0.47541963]
[1773456058279,0.002,2091.9,2091.6,1.19525721]
[1773456058433,0.002,2091.9,2091.7,0.47441963]
[1773456061271,0.002,2091.9,2091.7,1.6695993]
[1773456062145,0.49780841,2091.9,2091.6,0.47541963]
[1773456062350,0.49780841,2091.9,2091.6,1.6706489]
[1773456065065,0.49780841,2091.9,2091.6,0.001]
[1773456065586,4.78179786,2092.2,2091.6,0.001]
[1773456065587,0.002,2092.2,2091.6,0.52322991]
[1773456065772,1.19691599,2092.2,2091.6,0.52322991]
[1773456066064,1.21889827,2092.2,2091.6,0.52322991]
[1773456066270,0.002,2092.2,2091.6,0.47541963]
[1773456067156,0.002,2092.2,2091.8,0.48900886]
[1773456069273,1.21891248,2092.2,2091.8,1.68412161]
[1773456069481,0.02198228,2092.1,2091.8,0.48900886]
[1773456069771,0.02198228,2092.1,2091.8,1.68413876]
[1773456073773,0.002,2092.2,2091.9,0.48900886]
[1773456073977,0.02398228,2092.2,2091.9,0.48900886]
[1773456075184,0.002,2092.1,2091.9,0.48900886]
[1773456078778,0.002,2092.1,2091.9,1.68407939]
[1773456079081,0.002,2092.1,2092.0,0.48900886]
[1773456079574,0.002,2092.1,2091.9,1.68407939]
[1773456081785,0.002,2092.1,2092.0,0.48900886]
[1773456083389,0.002,2092.1,2091.9,1.24287396]
[1773456083683,0.002,2092.1,2091.9,1.73188282]
[1773456084979,0.002,2092.1,2092.0,0.48900886]
[1773456085370,0.002,2092.1,2091.9,1.73188282]
[1773456086896,0.02398228,2092.2,2091.9,1.73188282]
[1773456086897,0.002,2092.3,2092.1,1.68298041]
[1773456087754,0.002,2092.3,2092.1,1.73077927]
[1773456089485,0.002,2092.3,2092.2,0.48800886]
[1773456091284,4.78078276,2092.6,2092.2,0.48800886]
[1773456091285,0.002,2092.6,2092.2,0.48800886]
[1773456092512,0.002,2092.6,2092.3,0.48800886]
[1773456095676,0.002,2092.6,2092.4,0.48800886]
[1773456115610,0.002,2092.6,2092.5,0.001]
[1773456115983,0.02598228,2092.6,2092.2,0.49569699]
[1773456116183,0.02598228,2092.6,2092.1,0.001]
[1773456116415,0.02598228,2092.6,2092.3,0.001]
[1773456117897,0.02298228,2092.4,2092.3,0.001]
[1773456119420,1.19474313,2092.5,2092.3,0.001]
[1773456119791,0.02298228,2092.5,2092.3,0.001]
[1773456120722,0.02298228,2092.5,2092.0,0.001]
[1773456120723,0.02298228,2092.3,2092.0,0.001]
[1773456121040,0.02298228,2092.3,2091.8,0.001]
[1773456121593,0.02298228,2092.3,2091.6,0.49669699]
[1773456121594,0.02298228,2091.9,2091.5,0.001]
[1773456121796,0.02298228,2091.7,2091.5,0.001]
[1773456124197,1.21819657,2091.7,2091.5,0.001]
[1773456128314,1.19521429,2091.7,2091.5,0.001]
[1773456135226,0.02298228,2091.7,2091.5,0.001]
[1773456136029,0.02298228,2091.7,2091.4,0.001]
[1773456136409,0.02298228,2091.7,2091.3,0.001]
[1773456137830,1.21823949,2091.6,2091.3,0.001]
[1773456138622,1.19525721,2091.6,2091.3,0.49669699]
[1773456138827,1.19517376,2091.8,2091.3,0.49669699]
[1773456139028,1.21810735,2091.9,2091.5,0.49569699]
[1773456139229,0.02298228,2092.1,2091.5,0.49569699]
[1773456139533,1.21783961,2092.3,2091.5,0.49569699]
[1773456139727,1.19684145,2092.4,2091.7,0.49569699]
[1773456140226,1.21982373,2092.4,2091.7,0.49569699]
[1773456141110,0.02298228,2092.3,2091.7,0.49569699]
[1773456142424,0.002,2092.0,2091.9,0.48850886]
[1773456143323,1.22179085,2092.4,2092.0,0.48750886]
[1773456148547,0.002,2092.4,2092.1,0.48750886]
[1773456149427,1.19681739,2092.4,2092.1,0.48750886]
[1773456149822,1.22179967,2092.4,2092.1,0.48750886]
[1773456154552,0.002,2092.2,2092.1,0.48750886]
[1773456159734,0.002,2092.2,2092.1,1.68248041]
[1773456159932,0.002,2092.2,2092.1,1.73027927]
[1773456161663,0.002,2092.4,2092.1,1.73027927]
[1773456161664,0.002,2092.4,2092.2,0.48650886]
[1773456163633,0.002,2092.4,2092.3,0.48650886]
[1773456166856,0.02898228,2092.4,2092.2,0.001]
[1773456167058,0.002,2092.2,2091.7,0.48650886]
[1773456167282,0.02898228,2092.2,2091.7,0.48650886]
[1773456167875,0.02898228,2092.2,2091.7,0.48750886]
[1773456168472,1.22095383,2092.1,2091.7,0.48750886]
[1773456168858,1.22095383,2092.1,2091.7,1.68270312]
[1773456169384,1.22095383,2092.1,2091.7,0.48750886]
[1773456174270,0.02598228,2092.0,2091.7,0.48750886]
[1773456175890,1.22101181,2092.0,2091.7,0.48750886]
[1773456177391,0.02598228,2092.0,2091.7,0.48750886]
[1773456178190,1.22101301,2092.0,2091.7,0.48750886]
[1773456179100,0.02598228,2092.0,2091.7,0.48750886]
[1773456179998,0.02598228,2092.0,2091.9,0.001]
[1773456180370,0.02798228,2092.0,2091.9,0.001]
[1773456185377,0.02598228,2091.9,2091.4,0.48183173]
[1773456186701,1.66281705,2091.8,2091.4,0.48183173]
[1773456186901,0.46767412,2091.4,2091.2,0.001]
[1773456187211,0.46767412,2091.4,2091.0,0.48183173]
[1773456187418,0.46767412,2091.4,2090.9,0.001]
[1773456188076,0.46767412,2091.4,2090.9,1.6774864]
[1773456189077,0.46767412,2091.3,2090.9,1.6774864]
[1773456191705,1.19541098,2091.4,2091.0,0.48083173]
[1773456192102,1.6630851,2091.4,2091.0,0.48083173]
[1773456193480,0.46767412,2091.3,2091.0,0.48083173]
[1773456194284,0.46767412,2091.3,2091.1,0.001]
[1773456195080,0.46767412,2091.3,2090.9,0.001]
[1773456195405,0.46767412,2091.3,2090.9,0.48183173]
[1773456196385,1.66311503,2091.3,2090.9,0.48183173]
[1773456196604,0.46767412,2091.3,2091.0,0.48083173]
[1773456196909,1.19541769,2091.4,2091.0,0.52865573]
[1773456197206,1.66302937,2091.5,2091.0,0.52865573]
[1773456198590,0.46767412,2091.4,2091.0,0.48083173]
[1773456199992,1.19535525,2091.5,2091.0,0.48083173]
[1773456200193,1.19535525,2091.5,2091.1,0.48083173]
[1773456200884,1.66302937,2091.5,2091.1,0.48083173]
[1773456207910,1.66302937,2091.5,2091.2,0.001]
[1773456208099,0.002,2091.3,2091.2,0.001]
[1773456208612,0.47254739,2091.3,2091.2,0.001]
[1773456208819,0.002,2091.3,2091.1,0.46321726]
[1773456209898,0.002,2091.5,2091.1,0.46321726]
[1773456210390,0.47254739,2091.5,2091.1,0.46321726]
[1773456211717,1.6679077,2091.5,2091.1,0.46321726]
[1773456212119,1.6679077,2091.5,2091.0,1.19659699]
[1773456212120,0.47054739,2091.4,2091.0,0.46421726]
[1773456212654,0.47054739,2091.4,2091.0,0.001]
[1773456215211,1.66597607,2091.3,2091.0,0.001]
[1773456215391,0.47054739,2091.2,2091.0,0.001]
[1773456217007,0.47054739,2091.1,2090.9,0.001]
[1773456224538,0.47054739,2091.1,2090.8,0.0003]
[1773456224740,0.47054739,2091.0,2090.6,0.46421726]
[1773456225113,0.47054739,2091.0,2090.6,1.66003733]
[1773456227614,1.66617928,2091.0,2090.6,0.46421726]
[1773456228147,0.47054739,2091.0,2090.6,1.66001343]
[1773456228740,1.19558889,2091.1,2090.7,0.47226208]
[1773456229045,1.6839609,2091.1,2090.7,0.47226208]
[1773456231331,0.49969547,2091.0,2090.6,0.001]
[1773456232342,0.49969547,2090.9,2090.6,0.001]
[1773456232643,0.49969547,2090.9,2090.6,0.4528651]
[1773456233019,0.49969547,2091.1,2090.6,0.4528651]
[1773456234247,0.002,2091.2,2090.7,1.19577175]
[1773456234421,0.002,2091.2,2090.8,0.4518651]
[1773456234623,0.002,2091.2,2090.8,0.4529651]
[1773456235040,0.50169547,2091.2,2090.8,0.4529651]
[1773456236848,1.19554301,2091.1,2090.8,0.4529651]
[1773456238849,0.49969547,2091.1,2090.8,0.4529651]
[1773456242851,1.19554394,2091.1,2090.8,0.4529651]
[1773456243350,0.49969547,2091.1,2090.8,0.0011]
[1773456243866,0.49969547,2091.1,2090.8,0.4529651]
[1773456245571,1.69525238,2091.1,2090.8,0.4529651]
[1773456247262,0.002,2090.9,2090.8,0.4529651]
[1773456249554,0.50169547,2090.9,2090.8,0.0011]
[1773456249743,0.002,2090.9,2090.8,0.4529651]
[1773456251168,0.002,2090.9,2090.8,0.0011]
[1773456254047,0.002,2090.9,2090.8,0.4529651]
[1773456263745,0.002,2090.9,2090.8,1.64867965]
[1773456264073,0.0012,2091.1,2090.9,0.45367677]
[1773456264241,0.0012,2091.1,2090.9,0.45287677]
[1773456266369,0.0012,2091.1,2090.9,1.64853347]
[1773456266767,0.0012,2091.1,2090.9,0.45287677]
[1773456267468,0.46324037,2091.1,2090.8,0.0011]
[1773456268570,0.46204037,2091.0,2090.8,0.0011]
[1773456272787,1.65766174,2091.0,2090.8,0.0011]
[1773456273162,1.65766174,2091.0,2090.9,0.0011]
[1773456275558,0.46204037,2091.0,2090.9,0.0011]
[1773456282591,0.0012,2091.1,2090.9,0.45477677]
[1773456283992,1.19741647,2091.4,2091.0,0.45367677]
[1773456286184,1.19741647,2091.4,2091.0,0.45477677]
[1773456286492,0.001,2091.2,2091.0,0.45477677]
[1773456293172,0.001,2091.2,2091.1,0.46013007]
[1773456293376,0.002,2091.5,2091.1,0.50795179]
[1773456294479,0.002,2091.5,2091.1,0.46013007]
[1773456295300,0.002,2091.5,2091.3,0.46013007]
[1773456301692,0.45545764,2091.5,2091.2,0.0011]
[1773456302014,0.45545764,2091.5,2091.0,1.8431]
[1773456302599,0.45545764,2091.5,2091.0,0.0011]
[1773456305808,1.19537152,2091.4,2091.0,0.0011]
[1773456306015,0.45345764,2091.3,2091.0,0.0011]
[1773456308914,0.45345764,2091.2,2091.0,0.0011]
[1773456310512,1.19547009,2091.3,2091.0,0.46123007]
[1773456310819,1.64892773,2091.3,2091.0,0.46123007]
[1773456312022,1.64892773,2091.3,2091.2,0.0011]
[1773456312317,0.45345764,2091.2,2091.0,0.0011]
[1773456313722,1.64897012,2091.2,2091.0,0.0011]
[1773456313921,0.45345764,2091.1,2091.0,0.0011]
[1773456314798,0.45345764,2091.1,2090.8,0.0011]
[1773456316638,0.45345764,2090.9,2090.8,0.0011]
[1773456318725,0.75042559,2091.2,2090.8,0.0011]
[1773456318917,1.19646017,2091.3,2090.8,0.46123007]
[1773456319103,1.19646017,2091.3,2091.0,0.46013007]
[1773456323759,1.19646017,2091.3,2091.0,0.46123007]
[1773456324043,1.19646017,2091.3,2091.1,0.48531196]
[1773456324044,0.001,2091.3,2091.1,0.48531196]
[1773456336319,0.002,2091.5,2091.3,0.48531196]
[1773456339122,0.002,2091.5,2091.3,1.68073023]
[1773456339339,0.002,2091.5,2091.3,1.19541827]
[1773456339540,0.002,2091.5,2091.4,0.48531196]
[1773456341242,0.002,2091.5,2091.3,1.19541827]
[1773456341443,0.002,2091.5,2091.2,1.72857846]
[1773456341739,0.002,2091.5,2091.3,0.48531196]
[1773456343320,0.002,2091.5,2091.4,0.04781486]
[1773456344643,0.002,2091.5,2091.4,0.53312682]
[1773456351627,0.002,2091.5,2091.4,1.72849834]
[1773456352653,0.002,2091.5,2091.4,0.53312682]
[1773456354953,0.4536301,2091.5,2091.1,0.001]
[1773456356936,0.4516301,2091.3,2091.1,0.001]
[1773456362359,0.4516301,2091.2,2091.0,0.0011]
[1773456370062,0.4516301,2091.2,2090.9,3.02463537]
[1773456370972,0.4516301,2091.2,2090.9,1.829]
[1773456371877,0.4516301,2091.2,2090.9,3.0246389]
[1773456373864,0.4516301,2091.2,2090.9,3.4977467]
[1773456374064,0.049815,2091.3,2090.9,3.4977467]
[1773456374473,0.5014451,2091.3,2090.9,3.4977467]
[1773456374948,0.5014451,2091.3,2091.1,0.001]
[1773456375651,0.002,2091.2,2091.1,0.001]
[1773456375972,0.002,2091.2,2091.1,0.4741078]
[1773456378180,0.002,2091.2,2091.1,0.001]
[1773456378360,0.4536301,2091.2,2090.9,3.02464913]
[1773456380005,0.002,2091.2,2091.0,0.4731078]
[1773456380488,0.002,2091.2,2090.9,3.49775693]
[1773456382086,0.46669391,2091.2,2090.9,1.829]
[1773456382382,0.46669391,2091.2,2090.9,3.02465121]
[1773456384486,0.002,2091.2,2091.0,0.47925092]
[1773456384694,0.002,2091.2,2091.1,0.04782172]
[1773456387989,0.002,2091.2,2091.1,1.72261565]
[1773456388583,0.002,2091.5,2091.2,0.47925092]
[1773456388780,0.049815,2091.5,2091.2,0.47925092]
[1773456388975,0.002,2091.5,2091.3,0.48025092]
[1773456391197,0.002,2091.5,2091.4,1.67462244]
[1773456395577,0.002,2091.7,2091.5,0.47925092]
[1773456395787,0.002,2091.7,2091.6,1.67450813]
[1773456403704,0.002,2091.7,2091.6,0.47925092]
[1773456404312,0.002,2091.7,2091.5,0.001]
[1773456404499,0.46469391,2091.6,2091.5,0.001]
[1773456415837,0.46669391,2091.6,2091.5,0.001]
[1773456416334,0.002,2091.6,2091.5,0.001]
[1773456434952,0.45817751,2091.6,2091.5,0.001]
[1773456438871,0.002,2091.6,2091.5,0.001]
[1773456445669,0.002,2091.6,2091.5,0.001]
[1773456447465,0.002,2091.6,2091.5,0.52890452]
[1773456451173,0.002,2091.6,2091.5,1.72421888]
[1773456451474,0.002,2091.6,2091.5,0.52890452]
[1773456451776,0.002,2091.6,2091.5,1.67640631]
[1773456453879,0.002,2091.9,2091.6,0.48009195]
[1773456454079,0.49292945,2092.3,2091.8,0.48009195]
[1773456454380,0.54074445,2092.3,2091.8,0.48009195]
[1773456454686,0.49292945,2092.3,2091.8,0.48009195]
[1773456454847,0.002,2092.3,2091.8,0.48009195]
[1773456455048,0.002,2092.3,2092.0,0.48009195]
[1773456456077,0.002,2092.3,2092.0,1.67511999]
[1773456456378,0.49292945,2092.3,2092.0,0.48009195]
[1773456456959,0.49292945,2092.3,2092.0,1.67511401]
[1773456460421,0.49092945,2092.1,2091.7,0.001]
[1773456460581,0.49092945,2091.9,2091.7,0.001]
[1773456461279,0.49092945,2091.8,2091.5,0.001]
[1773456465865,4.82815822,2092.0,2091.5,0.001]
[1773456466180,1.68605317,2091.9,2091.5,0.52890452]
[1773456466782,0.49935119,2091.8,2091.5,0.52890452]
[1773456468266,0.49935119,2091.8,2091.7,0.001]
[1773456468765,0.50135119,2091.8,2091.7,0.001]
[1773456470670,0.50135119,2091.8,2091.5,0.48109195]
[1773456472790,0.54916619,2091.8,2091.5,0.48109195]
[1773456472995,0.54916619,2091.8,2091.6,0.46716365]
[1773456472996,0.002,2091.8,2091.6,0.46716365]
[1773456473164,0.002,2091.8,2091.5,1.19631353]
[1773456473366,0.45508879,2091.8,2091.5,0.001]
[1773456473676,1.65026883,2091.8,2091.5,0.001]
[1773456474067,0.45308879,2091.7,2091.5,0.001]
[1773456478691,0.049815,2091.8,2091.5,0.001]
[1773456478891,0.50290379,2091.8,2091.5,0.001]
[1773456480098,0.50290379,2091.8,2091.5,0.46816365]
[1773456480312,1.69804818,2091.8,2091.5,0.46816365]
[1773456481712,1.69804818,2091.8,2091.7,0.001]
[1773456481895,1.69804818,2091.8,2091.5,0.46816365]
[1773456482087,1.69804818,2091.8,2091.5,0.46736365]
[1773456484811,0.50290379,2091.8,2091.5,0.46736365]
[1773456484997,0.50290379,2091.8,2091.6,0.46716365]
[1773456484998,0.002,2091.8,2091.6,0.46716365]
[1773456485191,0.45508879,2091.8,2091.5,0.46736365]
[1773456485405,1.65023491,2091.8,2091.5,0.46736365]
[1773456486540,1.65023491,2091.8,2091.5,0.0002]
[1773456486541,0.45308879,2091.7,2091.5,0.0002]
[1773456486679,1.19531436,2091.5,2091.2,0.001]
[1773456486879,0.45308879,2091.4,2091.2,0.001]
[1773456487697,0.45308879,2091.4,2091.0,0.46816365]
[1773456487901,0.45308879,2091.4,2091.1,0.51498537]
[1773456488106,0.45308879,2091.4,2091.1,0.46716365]
[1773456490210,0.45308879,2091.3,2091.0,0.001]
[1773456491010,0.45308879,2091.3,2091.0,0.46816365]
[1773456491408,0.45308879,2091.3,2091.0,1.6637507]
[1773456494702,0.45308879,2091.3,2091.2,0.001]
[1773456496219,1.19536117,2091.5,2091.2,0.001]
[1773456496402,0.45308879,2091.4,2091.2,0.001]
[1773456499321,0.50090379,2091.4,2091.2,0.001]
[1773456503396,1.69629887,2091.4,2091.2,0.001]
[1773456503599,0.45342826,2091.3,2091.2,0.001]
[1773456504123,0.45342826,2091.2,2091.0,0.001]
[1773456508100,0.45442826,2091.2,2091.0,0.001]
[1773456512203,0.001,2091.2,2091.0,0.001]
[1773456517510,0.001,2091.2,2091.0,0.46271575]
[1773456518014,0.047815,2091.4,2091.1,0.46171575]
[1773456518330,0.047815,2091.4,2091.1,0.50953747]
[1773456519024,1.24318935,2091.4,2091.1,0.46171575]
[1773456520412,1.24318935,2091.4,2091.2,0.46281575]
[1773456522942,0.047815,2091.4,2091.2,0.46281575]
[1773456525940,1.19730229,2091.6,2091.2,0.46281575]
[1773456526508,1.24511729,2091.6,2091.2,0.46281575]
[1773456527844,1.24511729,2091.6,2091.2,0.51063518]
[1773456532149,1.70118833,2091.6,2091.2,0.51063518]
[1773456533446,1.70118833,2091.6,2091.4,0.0011]
[1773456536226,0.45607104,2091.4,2091.2,0.0011]
[1773456544728,1.65140518,2091.5,2091.2,0.0011]
[1773456544928,0.45607104,2091.5,2091.2,0.48371207]
[1773456545158,1.70119072,2091.6,2091.2,0.48371207]
[1773456545362,1.65337572,2091.6,2091.2,0.48371207]
[1773456545856,0.047815,2091.5,2091.2,0.48371207]
[1773456546357,1.24313183,2091.5,2091.4,0.0011]
[1773456550669,1.69920287,2091.5,2091.4,0.0011]
[1773456558375,1.69920287,2091.5,2091.2,0.0011]
[1773456559058,1.69920287,2091.5,2091.4,0.001]
[1773456559377,1.69920287,2091.5,2091.2,0.0011]
[1773456559378,0.002,2091.3,2091.2,0.0011]
[1773456571885,0.46623609,2091.3,2091.2,0.0011]
[1773456572872,1.66166477,2091.3,2091.2,0.0011]
[1773456574191,0.46423609,2091.2,2091.0,0.001]
[1773456577391,0.51205109,2091.2,2091.0,0.001]
[1773456577784,0.047815,2091.2,2091.0,0.48429558]
[1773456581399,1.24332295,2091.2,2091.0,0.001]
[1773456581702,0.48814879,2091.1,2091.0,0.001]
[1773456581891,0.047815,2091.2,2091.0,0.001]
[1773456582091,0.53596379,2091.2,2091.0,0.001]
[1773456584784,0.002,2091.1,2091.0,0.001]
[1773456587905,0.49981005,2091.1,2090.9,0.001]
[1773456589607,0.002,2091.1,2090.9,0.48564534]
[1773456589809,0.002,2091.3,2091.1,0.48464534]
[1773456590012,0.002,2091.3,2091.1,0.4539364]
[1773456590700,0.002,2091.6,2091.3,0.48464534]
[1773456590882,0.002,2091.8,2091.4,0.48464534]
[1773456592636,0.002,2091.8,2091.6,0.49093004]
[1773456595223,0.002,2091.8,2091.7,1.68613011]
[1773456595428,0.002,2092.0,2091.7,1.19520007]
[1773456595722,0.002,2092.3,2091.8,0.49093004]
[1773456595928,0.002,2092.3,2092.0,0.49093004]
[1773456597300,0.002,2092.3,2092.2,0.49093004]
[1773456602828,0.002,2092.3,2092.2,1.68584448]
[1773456610141,0.47746335,2092.6,2092.2,1.68584448]
[1773456610142,0.47746335,2092.6,2092.3,0.49093004]
[1773456610310,0.47746335,2092.5,2092.1,1.68687815]
[1773456614937,0.47746335,2092.5,2092.2,0.53872661]
[1773456614938,0.002,2092.5,2092.2,0.53872661]
[1773456617234,0.002,2092.5,2092.3,1.68578737]
[1773456618631,0.002,2092.5,2092.4,0.49093004]
[1773456619346,0.002,2092.5,2092.4,1.68573026]
[1773456620837,0.002,2092.5,2092.4,0.49093004]
[1773456621035,0.002,2092.5,2092.4,1.68573026]
[1773456622239,0.002,2092.7,2092.5,0.46786386]
[1773456622822,0.002,2092.7,2092.5,0.46886386]
[1773456623819,0.45383935,2092.7,2092.5,0.001]
[1773456626449,0.45183935,2092.5,2092.3,0.001]
[1773456629576,0.45183935,2092.4,2092.3,0.001]
[1773456633292,0.45183935,2092.4,2091.9,0.001]
[1773456633293,0.45183935,2092.1,2091.9,0.001]
[1773456633445,0.45183935,2092.0,2091.9,0.001]
[1773456635849,1.64686803,2092.0,2091.9,0.001]